bitfinex-derivatives/quotes_SOLF0:USTF0_20241101
["timestamp","ask_amount","ask_price","bid_price","bid_amount"]
[1730449734097,8.33099072,166.14,166.08,11.34439072]
[1730449735401,3.0126,166.13,166.08,11.34439072]
[1730449735701,3.0126,166.13,166.08,3.0134]
[1730449736699,11.34359072,166.13,166.08,3.0134]
[1730449737601,3.0127,166.12,166.08,3.0134]
[1730449739797,8.33099072,166.13,166.08,3.0134]
[1730449739996,3.0125,166.13,166.08,11.34439072]
[1730449743301,3.0127,166.12,166.08,11.34439072]
[1730449746394,3.0126,166.13,166.09,3.0132]
[1730449746803,8.33099072,166.14,166.08,8.33099072]
[1730449747198,8.33099072,166.14,166.08,11.34429072]
[1730449748208,3.0127,166.13,166.08,11.34429072]
[1730449749510,8.33099072,166.14,166.08,8.33099072]
[1730449750707,3.0134,166.08,166.04,8.33099072]
[1730449750909,8.33099072,166.08,166.01,8.33099072]
[1730449751099,8.33099072,166.08,165.93,2.5537]
[1730449751100,8.33099072,166.08,165.94,4.13520051]
[1730449751312,3.0138,166.06,166.01,3.0145]
[1730449751807,3.0138,166.06,166.0,11.15099072]
[1730449753402,3.0138,166.06,166.02,3.0145]
[1730449756910,3.0138,166.06,166.02,11.34549072]
[1730449757215,3.0136,166.07,166.02,11.34549072]
[1730449757408,8.33099072,166.08,166.02,11.34549072]
[1730449758113,8.33099072,166.08,166.02,8.33099072]
[1730449758316,8.33099072,166.08,166.04,3.0141]
[1730449758815,11.34449072,166.08,166.04,3.0141]
[1730449759113,8.33099072,166.08,166.03,3.0143]
[1730449760317,3.0136,166.07,166.03,3.0143]
[1730449762615,11.34419072,166.09,166.05,3.0139]
[1730449763918,8.33099072,166.09,166.05,3.0139]
[1730449764115,3.0134,166.08,166.05,3.0139]
[1730449764718,8.33099072,166.09,166.04,8.33099072]
[1730449765015,2.82,166.11,166.01,8.33099072]
[1730449765016,8.33099072,166.07,166.01,8.33099072]
[1730449765210,8.33099072,166.07,166.03,3.0141]
[1730449765518,11.34439072,166.08,166.03,3.0141]
[1730449767623,3.0136,166.07,166.03,3.0141]
[1730449768722,8.33099072,166.1,166.04,8.33099072]
[1730449768912,3.0134,166.09,166.05,3.0138]
[1730449769111,8.33099072,166.1,166.05,3.0138]
[1730449769722,3.0134,166.09,166.05,3.0138]
[1730449770429,8.33099072,166.08,166.03,8.33099072]
[1730449770726,3.0137,166.07,166.03,11.34529072]
[1730449780533,3.0138,166.06,166.02,11.34539072]
[1730449781426,3.0141,166.05,166.01,5.8346]
[1730449783734,11.34449072,166.08,166.03,11.34519072]
[1730449783936,8.33099072,166.08,166.03,11.34519072]
[1730449784324,3.0137,166.07,166.03,8.33099072]
[1730449784524,3.0137,166.07,166.02,11.34529072]
[1730449785832,8.33099072,166.08,166.02,8.33099072]
[1730449786132,11.34449072,166.08,166.04,3.0141]
[1730449793137,3.0136,166.07,166.04,3.0141]
[1730449797551,3.0138,166.06,166.03,3.0143]
[1730449797846,11.34479072,166.06,166.03,3.0143]
[1730449798055,8.33099072,166.06,166.01,2.82]
[1730449799149,3.0142,166.04,166.01,2.82]
[1730449800151,3.0142,166.04,166.0,11.34579072]
[1730449800352,3.0144,166.03,165.99,11.34599072]
[1730449803358,8.33099072,166.04,165.98,11.34619072]
[1730449803359,3.0145,166.02,165.98,11.34619072]
[1730449803552,8.33099072,166.04,165.98,11.34619072]
[1730449804252,3.0145,166.03,165.98,8.33099072]
[1730449806061,3.0145,166.03,165.99,3.015]
[1730449806782,8.33099072,166.04,165.98,8.33099072]
[1730449807156,2.702,166.06,166.0,8.33099072]
[1730449807854,5.7158,166.06,166.02,3.0144]
[1730449808858,2.702,166.06,165.97,2.82]
[1730449809049,8.33099072,166.1,166.05,8.33099072]
[1730449809256,2.82,166.11,166.05,8.33099072]
[1730449809257,8.33099072,166.11,166.05,8.33099072]
[1730449809648,8.33099072,166.11,166.06,3.0136]
[1730449809958,8.33099072,166.11,166.05,8.33099072]
[1730449810145,8.33099072,166.11,166.06,8.33099072]
[1730449810349,11.34389072,166.11,166.07,3.0134]
[1730449816063,8.33099072,166.14,166.09,8.33099072]
[1730449817269,3.0125,166.13,166.1,3.0129]
[1730449817963,11.34329072,166.14,166.1,3.0129]
[1730449818168,10.34828902,166.15,166.11,3.0127]
[1730449818361,3.0123,166.14,166.11,3.0127]
[1730449820369,3.0123,166.14,166.09,8.33099072]
[1730449822166,3.0123,166.14,166.1,3.013]
[1730449822775,21.69137974,166.15,166.11,3.0127]
[1730449822966,11.98168902,166.15,166.09,8.33099072]
[1730449823276,2.7347,166.19,166.14,8.33099072]
[1730449823277,14.07709072,166.19,166.14,8.33099072]
[1730449823481,8.96193897,166.18,166.14,8.33099072]
[1730449824175,18.84211127,166.18,166.15,3.0121]
[1730449825378,18.84211127,166.18,166.14,8.33099072]
[1730449825568,8.96193897,166.17,166.15,8.33099072]
[1730449825880,8.96193897,166.22,166.16,8.33099072]
[1730449826077,8.96193897,166.22,166.15,2.8]
[1730449826078,21.84497507,166.23,166.19,3.0114]
[1730449826883,18.83417507,166.23,166.21,3.0109]
[1730449827176,3.0103,166.25,166.21,3.0109]
[1730449827177,18.83417507,166.22,166.21,3.0109]
[1730449827375,8.96193897,166.22,166.21,3.0109]
[1730449827573,3.0103,166.25,166.21,3.0109]
[1730449827574,11.97223897,166.25,166.21,3.0109]
[1730449827780,30.16161217,166.26,166.21,11.34189072]
[1730449828075,18.82042145,166.25,166.21,11.34189072]
[1730449829275,8.96193897,166.25,166.21,11.34189072]
[1730449829480,8.96193897,166.25,166.22,3.0108]
[1730449829684,3.0102,166.26,166.22,3.0108]
[1730449830092,18.80572503,166.26,166.22,3.0108]
[1730449830272,8.96193897,166.26,166.22,3.0108]
[1730449830475,20.30292969,166.27,166.22,3.0108]
[1730449831297,3.0102,166.26,166.22,3.0108]
[1730449832480,3.0104,166.25,166.21,11.34199072]
[1730449832788,3.0104,166.25,166.21,3.011]
[1730449834690,8.33099072,166.24,166.17,8.33099072]
[1730449834888,3.0109,166.22,166.18,5.8115]
[1730449835095,3.0109,166.22,166.18,2.8]
[1730449835593,3.0109,166.22,166.18,5.8116]
[1730449837385,8.33099072,166.23,166.17,8.33099072]
[1730449837590,8.33099072,166.22,166.16,8.33099072]
[1730449837777,9.65619072,166.22,166.16,8.33099072]
[1730449838091,3.0114,166.2,166.16,11.34279072]
[1730449840380,1.3252,166.22,166.17,8.33099072]
[1730449840587,3.0111,166.21,166.17,8.33099072]
[1730449841494,1.3055,166.24,166.17,8.33099072]
[1730449841695,1.3055,166.24,166.19,8.33099072]
[1730449842284,4.3162,166.24,166.2,3.0112]
[1730449842491,10.20618837,166.24,166.2,3.0112]
[1730449842693,20.01931585,166.24,166.2,3.0112]
[1730449843089,3.0107,166.23,166.19,3.0114]
[1730449844391,3.011,166.22,166.18,8.33099072]
[1730449844594,8.33099072,166.22,166.15,11.13099072]
[1730449844780,8.33099072,166.22,166.15,8.33099072]
[1730449844987,3.0114,166.2,166.16,3.0119]
[1730449845985,3.0114,166.2,166.15,8.33099072]
[1730449847396,3.0114,166.2,166.16,3.0119]
[1730449849002,8.33099072,166.19,166.14,2.8]
[1730449849385,8.33099072,166.19,166.12,8.33099072]
[1730449849597,5.3592,166.21,166.12,8.33099072]
[1730449849598,8.33099072,166.17,166.12,8.33099072]
[1730449849891,3.0123,166.15,166.12,8.33099072]
[1730449850296,8.33099072,166.19,166.12,8.33099072]
[1730449850595,3.0119,166.17,166.12,11.34359072]
[1730449851296,3.012,166.16,166.12,11.34359072]
[1730449853498,3.0125,166.14,166.1,11.34389072]
[1730449855203,3.0124,166.14,166.1,11.34399072]
[1730449857603,3.0124,166.14,166.1,3.013]
[1730449858402,11.34319072,166.15,166.11,3.0128]
[1730449859899,8.33099072,166.15,166.09,8.33099072]
[1730449860102,3.0123,166.14,166.1,3.013]
[1730449863695,8.33099072,166.15,166.09,8.33099072]
[1730449863909,11.34319072,166.15,166.11,3.0128]
[1730449865509,3.0123,166.14,166.1,3.013]
[1730449866210,3.0123,166.14,166.11,3.0128]
[1730449866908,11.13099072,166.17,166.08,2.8]
[1730449867094,2.5592,166.21,166.08,2.8]
[1730449867095,8.33099072,166.18,166.14,8.33099072]
[1730449868115,8.33099072,166.18,166.14,11.34329072]
[1730449868116,11.34269072,166.18,166.14,11.34329072]
[1730449869807,8.33099072,166.2,166.14,8.33099072]
[1730449870003,8.33099072,166.2,166.09,1.3242]
[1730449870004,2.5592,166.21,166.15,8.33099072]
[1730449870600,8.33099072,166.2,166.15,8.33099072]
[1730449871314,8.33099072,166.2,166.17,3.0118]
[1730449871315,11.34229072,166.2,166.17,3.0118]
[1730449874818,3.0113,166.2,166.17,3.0118]
[1730449875111,11.13099072,166.23,166.17,8.33099072]
[1730449875318,3.0109,166.22,166.18,3.0114]
[1730449876407,21.77743866,166.22,166.18,3.0114]
[1730449876910,3.0111,166.21,166.18,3.0114]
[1730449877817,18.76653866,166.22,166.18,8.33099072]
[1730449878118,8.33099072,166.24,166.19,3.0113]
[1730449878315,8.33099072,166.23,166.19,3.0113]
[1730449879013,3.0109,166.22,166.18,3.0115]
[1730449879610,18.77572893,166.22,166.2,3.0112]
[1730449879815,8.93007881,166.21,166.2,3.0112]
[1730449880011,18.77865166,166.24,166.2,3.0112]
[1730449880808,18.77865166,166.24,166.18,8.33099072]
[1730449881008,3.0108,166.23,166.19,3.0114]
[1730449881915,21.78935166,166.24,166.2,3.0111]
[1730449882214,18.77865166,166.24,166.18,8.33099072]
[1730449882417,18.77865166,166.24,166.16,11.13099072]
[1730449882418,8.33099072,166.23,166.16,11.13099072]
[1730449882621,27.10964238,166.23,166.16,11.13099072]
[1730449882917,21.78955166,166.22,166.18,3.0115]
[1730449883218,18.77865166,166.22,166.19,8.33099072]
[1730449883515,8.33099072,166.26,166.19,8.33099072]
[1730449883516,3.0105,166.24,166.21,3.0111]
[1730449883715,8.93007881,166.25,166.21,3.0111]
[1730449883716,8.93007881,166.25,166.21,11.34209072]
[1730449883919,3.0102,166.26,166.22,3.0107]
[1730449884321,8.93801155,166.27,166.22,8.33099072]
[1730449884628,39.20200224,166.41,166.2,2.8]
[1730449884629,8.33099072,166.31,166.24,8.33099072]
[1730449885520,27.12292923,166.31,166.24,8.33099072]
[1730449885820,8.93801155,166.3,166.24,8.33099072]
[1730449886007,3.0096,166.29,166.25,11.34119072]
[1730449886209,8.93801155,166.3,166.27,8.33099072]
[1730449886424,8.93801155,166.31,166.27,8.33099072]
[1730449887016,8.33099072,166.32,166.27,8.33099072]
[1730449887214,3.0094,166.31,166.27,11.34079072]
[1730449888025,17.26900227,166.31,166.25,8.33099072]
[1730449888330,3.0097,166.29,166.25,11.34129072]
[1730449888526,8.33099072,166.31,166.25,8.33099072]
[1730449888825,8.33099072,166.27,166.22,8.33099072]
[1730449889019,8.33099072,166.24,166.19,8.33099072]
[1730449889221,3.0109,166.22,166.19,8.33099072]
[1730449889730,3.0108,166.23,166.19,11.34239072]
[1730449891616,18.78803683,166.25,166.19,11.34239072]
[1730449891821,3.0105,166.24,166.19,11.34239072]
[1730449893336,8.33099072,166.24,166.17,11.13099072]
[1730449893627,3.0111,166.21,166.17,3.0117]
[1730449895427,17.27085195,166.22,166.16,8.33099072]
[1730449895627,8.33099072,166.2,166.14,8.33099072]
[1730449896128,3.0116,166.18,166.14,11.34329072]
[1730449896724,3.0116,166.18,166.14,3.0123]
[1730449897120,3.0116,166.18,166.13,8.33099072]
[1730449897321,3.0118,166.17,166.13,11.34339072]
[1730449897822,8.33099072,166.17,166.11,11.13099072]
[1730449898021,3.0122,166.15,166.11,11.34379072]
[1730449898223,8.33099072,166.14,166.08,59.9341669]
[1730449898432,3.0128,166.12,166.08,51.60317618]
[1730449898823,8.33099072,166.13,166.08,51.60317618]
[1730449899024,3.0129,166.11,166.08,51.60317618]
[1730449899231,8.33099072,166.13,166.07,8.33099072]
[1730449899734,3.0132,166.1,166.05,14.14489072]
[1730449900130,8.33099072,166.09,166.03,8.33099072]
[1730449900325,11.34419072,166.09,166.04,3.014]
[1730449902125,11.34419072,166.09,166.03,8.33099072]
[1730449902532,3.0132,166.09,166.02,2.8]
[1730449903338,3.0132,166.09,166.04,3.0141]
[1730449903630,3.0132,166.09,166.02,2.8]
[1730449903947,3.0132,166.09,166.04,3.0141]
[1730449904235,3.0131,166.1,166.03,13.02264641]
[1730449904543,6.7753,166.13,166.03,13.02264641]
[1730449905428,9.7879,166.13,166.03,13.02264641]
[1730449905647,6.7753,166.13,166.03,13.02264641]
[1730449905829,3.0133,166.09,166.04,3.014]
[1730449906032,6.7753,166.13,166.03,13.02264641]
[1730449906225,13.02264641,166.12,166.02,2.8]
[1730449907333,3.0132,166.09,166.04,3.0141]
[1730449911639,13.02264641,166.12,166.02,2.8]
[1730449911846,6.7753,166.13,166.06,3.0137]
[1730449912538,3.013,166.11,166.06,3.0137]
[1730449912730,6.7753,166.13,166.06,3.0137]
[1730449914034,3.0129,166.11,166.06,3.0137]
[1730449915342,6.7753,166.13,166.06,3.0137]
[1730449915641,3.0131,166.1,166.06,3.0137]
[1730449916850,6.7753,166.13,166.03,13.02264641]
[1730449916851,3.9753,166.13,166.03,13.02264641]
[1730449917037,3.9753,166.13,166.05,13.02264641]
[1730449917235,3.9753,166.13,166.06,2.8]
[1730449917436,3.0127,166.12,166.08,3.0132]
[1730449917944,3.9753,166.13,166.03,13.02264641]
[1730449918136,3.0135,166.08,166.04,3.0141]
[1730449918336,13.02264641,166.12,166.02,2.8]
[1730449918745,3.0131,166.1,166.02,2.8]
[1730449919242,3.0131,166.1,166.05,3.0138]
[1730449920044,3.0131,166.1,166.02,2.8]
[1730449920045,3.0131,166.1,166.06,3.0137]
[1730449920734,3.9753,166.13,166.03,13.02264641]
[1730449921244,3.9753,166.13,166.03,15.69054641]
[1730449921746,3.0128,166.12,166.03,15.69054641]
[1730449921950,13.02264641,166.16,166.05,13.02264641]
[1730449922175,13.02264641,166.16,166.06,2.8]
[1730449922452,8.33180036,166.12,166.08,3.0133]
[1730449923045,8.33180036,166.12,166.03,2.6679]
[1730449923046,8.33180036,166.09,166.03,10.99970036]
[1730449923243,8.33180036,166.09,166.04,2.8]
[1730449923655,3.0135,166.08,166.04,5.814]
[1730449923850,3.0135,166.08,166.04,3.014]
[1730449924248,3.0139,166.06,166.02,14.14630036]
[1730449924547,3.0139,166.06,165.97,1.2839]
[1730449924548,8.33180036,166.05,165.99,8.33180036]
[1730449924744,8.33180036,166.05,165.99,11.13180036]
[1730449925140,11.34590036,166.05,166.0,3.0147]
[1730449925355,11.34590036,166.05,165.99,11.13180036]
[1730449926358,11.34590036,166.05,166.01,3.0146]
[1730449926547,3.0141,166.05,166.01,3.0146]
[1730449926856,3.0142,166.04,166.0,3.0148]
[1730449927152,14.38370916,166.08,166.0,3.0148]
[1730449927645,3.014,166.05,166.0,3.0148]
[1730449934455,3.0147,166.02,165.97,3.0154]
[1730449934645,3.0147,166.02,165.96,2.8]
[1730449934845,3.0147,166.02,165.98,3.0152]
[1730449935852,3.0147,166.02,165.97,3.0154]
[1730449938045,5.425,166.05,165.97,3.0154]
[1730449938551,5.425,166.05,165.97,13.02890916]
[1730449938758,3.0141,166.04,166.0,3.0148]
[1730449939052,3.0141,166.04,165.97,13.02890916]
[1730449939463,3.0138,166.06,165.99,13.02890916]
[1730449939754,1.3548,166.08,166.0,2.8]
[1730449939952,3.0134,166.08,166.0,2.8]
[1730449940157,2.8,166.11,166.02,13.02890916]
[1730449940360,2.8,166.11,166.06,3.0137]
[1730449940549,3.0131,166.1,166.02,13.02890916]
[1730449942361,3.0131,166.1,166.05,3.0139]
[1730449942549,1.3471,166.14,166.04,15.82890916]
[1730449942756,1.3471,166.14,166.05,2.8]
[1730449942952,1.3471,166.14,166.07,3.0136]
[1730449943260,3.0128,166.12,166.07,3.0136]
[1730449946451,11.35330423,166.12,166.07,3.0136]
[1730449947866,9.68760423,166.14,166.08,8.34050423]
[1730449948055,11.01780423,166.15,166.09,8.34050423]
[1730449948255,11.01780423,166.15,166.05,2.8]
[1730449948256,8.34050423,166.14,166.07,8.34050423]
[1730449948752,3.0126,166.13,166.08,3.0133]
[1730449950167,3.0126,166.13,166.07,8.34050423]
[1730449950375,3.0126,166.13,166.09,3.0132]
[1730449950759,8.34050423,166.14,166.09,3.0132]
[1730449950959,11.35290423,166.14,166.09,3.0132]
[1730449954167,8.34050423,166.14,166.07,8.34050423]
[1730449954366,3.0127,166.13,166.08,3.0134]
[1730449955056,8.34050423,166.12,166.08,3.0134]
[1730449955268,11.35330423,166.12,166.08,3.0134]
[1730449955577,11.35330423,166.12,166.07,3.0135]
[1730449957669,8.34050423,166.12,166.05,8.34050423]
[1730449957868,8.34050423,166.12,166.06,2.8]
[1730449958275,3.0132,166.1,166.05,11.35430423]
[1730449958475,8.34050423,166.1,166.05,8.34050423]
[1730449958673,3.0133,166.09,166.04,2.8]
[1730449958871,3.0133,166.09,166.03,11.35480423]
[1730449958872,8.34050423,166.09,166.03,11.35480423]
[1730449959063,11.14050423,166.13,166.06,8.34050423]
[1730449959261,3.0132,166.1,166.05,11.35440423]
[1730449959774,8.34050423,166.11,166.05,11.35440423]
[1730449959970,3.0134,166.08,166.05,8.34050423]
[1730449960174,3.0134,166.08,166.04,3.0141]
[1730449961082,3.0136,166.07,166.03,14.15480423]
[1730449962072,3.0135,166.08,166.03,14.15480423]
[1730449964871,8.34050423,166.11,166.05,8.34050423]
[1730449965082,3.0132,166.1,166.05,11.35430423]
[1730449966391,3.0132,166.1,166.05,3.0138]
[1730449966392,3.0133,166.09,166.05,3.0138]
[1730449967091,11.35360423,166.1,166.06,3.0136]
[1730449967498,8.34050423,166.1,166.03,11.14050423]
[1730449968588,8.34050423,166.1,166.03,8.34050423]
[1730449969092,3.0135,166.08,166.03,11.35470423]
[1730449969295,8.34050423,166.1,166.03,11.35470423]
[1730449969494,3.0137,166.07,166.03,11.35470423]
[1730449969993,3.0138,166.06,166.02,14.15500423]
[1730449970194,8.34050423,166.08,166.02,14.15500423]
[1730449970195,8.34050423,166.08,166.02,11.14050423]
[1730449970393,8.34050423,166.06,166.0,8.34050423]
[1730449970696,8.34050423,166.06,166.0,11.35520423]
[1730449970697,3.0141,166.05,166.0,11.35520423]
[1730449972101,3.0141,166.04,166.0,8.34050423]
[1730449972990,8.34050423,166.03,165.98,51.63042884]
[1730449974309,3.0148,166.01,165.98,51.63042884]
[1730449974689,8.34050423,166.02,165.95,8.34050423]
[1730449974888,3.0149,166.0,165.95,11.35630423]
[1730449975203,3.0149,166.0,165.95,14.15630423]
[1730449975399,8.34050423,166.02,165.96,3.0156]
[1730449975600,2.8,166.05,165.95,2.8]
[1730449975601,8.34050423,166.03,165.97,8.34050423]
[1730449976192,3.0145,166.02,165.98,3.0152]
[1730449976389,8.34050423,166.03,165.98,8.34050423]
[1730449976690,2.8,166.05,166.0,8.34050423]
[1730449976691,11.14050423,166.05,166.0,8.34050423]
[1730449976897,8.34050423,166.05,166.0,8.34050423]
[1730449977094,11.35450423,166.05,166.0,11.35520423]
[1730449980805,11.35490423,166.03,165.98,11.35570423]
[1730449981105,8.34050423,166.03,165.98,11.35570423]
[1730449982403,8.34050423,166.03,165.95,2.8]
[1730449982404,8.34050423,166.03,165.97,11.35580423]
[1730449982605,8.34050423,166.03,165.97,8.34050423]
[1730449982801,3.0149,166.0,165.97,8.34050423]
[1730449983508,8.34050423,166.01,165.95,8.34050423]
[1730449983709,8.34050423,165.99,165.94,2.8]
[1730449983905,8.34050423,165.99,165.93,8.34050423]
[1730449983906,3.0154,165.98,165.93,11.35650423]
[1730449984208,3.0154,165.98,165.93,14.15650423]
[1730449984413,8.34050423,165.97,165.93,3.016]
[1730449984708,8.34050423,165.96,165.91,2.8]
[1730449985913,8.34050423,165.96,165.9,8.34050423]
[1730449986116,8.34050423,165.96,165.9,11.14050423]
[1730449986309,11.35630423,165.96,165.92,3.0163]
[1730449986909,11.35590423,165.97,165.92,3.0163]
[1730449987107,8.34050423,166.0,165.95,8.34050423]
[1730449987308,8.34050423,166.0,165.9,2.8]
[1730449987309,8.34050423,166.02,165.96,8.34050423]
[1730449987911,8.34050423,166.03,165.96,8.34050423]
[1730449988310,8.34050423,166.03,165.99,3.0149]
[1730449989614,11.35490423,166.03,165.99,3.0149]
[1730449989921,11.14050423,166.05,166.0,3.0148]
[1730449990213,8.34050423,166.03,165.98,11.18050423]
[1730449990515,13.03165804,166.06,165.98,5.855]
[1730449990713,2.84,166.08,165.98,5.855]
[1730449990714,13.03165804,166.04,165.98,2.84]
[1730449990908,13.03165804,166.04,165.95,2.84]
[1730449991221,13.03165804,166.04,165.89,17.15850815]
[1730449991222,13.03165804,166.01,165.89,17.15850815]
[1730449991512,13.03165804,165.98,165.89,2.84]
[1730449993319,3.0156,165.96,165.91,3.0164]
[1730449998224,13.03165804,165.98,165.89,2.84]
[1730449998411,3.0159,165.95,165.9,3.0167]
[1730450003116,2.7314,165.97,165.89,2.84]
[1730450003623,4.0806,165.97,165.89,2.84]
[1730450003817,3.0158,165.95,165.9,3.0165]
[1730450010233,4.0806,165.97,165.86,13.03165804]
[1730450010629,13.03165804,165.96,165.87,2.84]
[1730450011022,2.84,165.95,165.85,2.84]
[1730450011228,13.03165804,165.93,165.85,2.84]
[1730450011429,3.0158,165.95,165.9,3.0165]
[1730450011627,2.84,165.96,165.86,13.03165804]
[1730450012436,11.18748599,165.96,165.9,8.34748599]
[1730450012634,8.34748599,165.94,165.88,8.34748599]
[1730450013125,3.0162,165.93,165.89,3.0168]
[1730450014341,2.84,165.96,165.85,2.84]
[1730450014342,11.18748599,165.96,165.9,8.34748599]
[1730450014541,8.34748599,165.94,165.88,8.34748599]
[1730450015034,11.36378599,165.93,165.88,11.36438599]
[1730450015641,3.0163,165.92,165.88,11.36438599]
[1730450015836,8.34748599,165.93,165.87,11.36458599]
[1730450016352,8.34748599,165.93,165.85,2.84]
[1730450016353,8.34748599,165.91,165.85,8.34748599]
[1730450016638,8.34748599,165.89,165.83,11.18748599]
[1730450016830,3.0172,165.88,165.84,3.0177]
[1730450017537,3.0172,165.88,165.83,11.18748599]
[1730450017538,11.36438599,165.89,165.85,3.0175]
[1730450017838,3.0169,165.89,165.85,11.36498599]
[1730450018341,3.0167,165.9,165.85,11.36498599]
[1730450024343,3.0169,165.89,165.85,11.36498599]
[1730450024746,11.02358599,165.91,165.85,8.34748599]
[1730450024943,3.0167,165.9,165.86,3.0173]
[1730450025338,8.34748599,165.9,165.84,8.34748599]
[1730450025543,3.0169,165.89,165.84,8.34748599]
[1730450025946,2.6761,165.91,165.88,3.017]
[1730450026244,3.0164,165.92,165.88,3.017]
[1730450026456,11.36378599,165.93,165.88,3.017]
[1730450026651,8.34748599,165.93,165.87,11.36468599]
[1730450027848,8.34748599,165.93,165.87,8.34748599]
[1730450028054,11.36378599,165.93,165.88,3.0169]
[1730450031055,3.0163,165.93,165.88,11.36438599]
[1730450032657,3.0163,165.92,165.88,11.36438599]
[1730450032855,11.36378599,165.92,165.88,3.0169]
[1730450033754,11.36378599,165.92,165.87,8.34748599]
[1730450033755,3.0166,165.91,165.87,8.34748599]
[1730450034153,8.34748599,165.9,165.86,3.0174]
[1730450035843,3.0166,165.91,165.86,11.36488599]
[1730450038158,8.34748599,165.9,165.85,8.34748599]
[1730450039261,3.017,165.89,165.85,11.36508599]
[1730450045876,8.34748599,165.89,165.85,8.34748599]
[1730450047255,11.36448599,165.89,165.85,8.34748599]
[1730450047567,8.34748599,165.91,165.86,8.34748599]
[1730450047966,3.0169,165.9,165.86,8.34748599]
[1730450049268,14.22398599,165.92,165.88,11.36438599]
[1730450049465,11.20748599,165.92,165.88,8.34748599]
[1730450049966,3.0166,165.91,165.88,8.34748599]
[1730450051274,3.0166,165.91,165.88,11.36448599]
[1730450051475,11.20748599,165.92,165.88,11.36448599]
[1730450051662,14.22388599,165.92,165.88,11.36448599]
[1730450052369,14.22388599,165.92,165.88,3.017]
[1730450052969,11.20748599,165.92,165.87,8.34748599]
[1730450053172,3.0165,165.91,165.87,11.36468599]
[1730450062182,11.36388599,165.92,165.88,3.017]
[1730450062377,3.0164,165.92,165.88,11.36448599]
[1730450062587,8.34748599,165.95,165.9,8.34748599]
[1730450062878,12.51668599,165.97,165.9,8.34748599]
[1730450063271,31.38308613,165.97,165.9,8.34748599]
[1730450063478,11.98998945,165.96,165.91,3.0163]
[1730450063975,8.97428945,165.96,165.91,3.0163]
[1730450064178,3.0158,165.95,165.91,3.0163]
[1730450064678,3.0163,165.93,165.88,3.0169]
[1730450065385,3.0163,165.93,165.87,11.16748599]
[1730450065684,3.0163,165.93,165.89,3.0169]
[1730450066878,11.36348599,165.94,165.89,3.0169]
[1730450068084,11.36348599,165.94,165.89,11.36438599]
[1730450068274,8.34748599,165.95,165.89,8.34748599]
[1730450068481,11.36328599,165.95,165.9,8.34748599]
[1730450069384,3.0162,165.93,165.89,8.34748599]
[1730450070288,8.34748599,165.95,165.89,11.36428599]
[1730450071379,3.0162,165.93,165.89,11.36428599]
[1730450071781,8.98037752,165.95,165.92,8.34748599]
[1730450071986,11.99597752,165.96,165.92,8.34748599]
[1730450072189,8.98037752,165.96,165.9,11.36398599]
[1730450072486,8.98037752,165.96,165.87,2.82]
[1730450072487,8.34748599,165.95,165.89,8.34748599]
[1730450072791,3.0162,165.93,165.89,8.34748599]
[1730450073092,18.88102908,165.95,165.91,8.34748599]
[1730450073290,8.98037752,165.96,165.91,8.34748599]
[1730450073780,9.90191844,165.96,165.91,8.34748599]
[1730450073985,3.0157,165.96,165.91,8.34748599]
[1730450074280,18.88229596,165.96,165.91,8.34748599]
[1730450074788,3.0159,165.95,165.91,8.34748599]
[1730450074989,18.88229596,165.96,165.91,8.34748599]
[1730450075796,8.34748599,165.95,165.9,3.0166]
[1730450075990,3.016,165.94,165.9,3.0166]
[1730450076287,11.99637752,165.94,165.9,3.0166]
[1730450076591,3.016,165.94,165.9,3.0166]
[1730450076788,3.0157,165.96,165.92,3.0163]
[1730450076990,18.88528136,165.97,165.92,8.34748599]
[1730450077293,8.98037752,165.96,165.92,8.34748599]
[1730450077481,3.0155,165.97,165.92,11.36378599]
[1730450077685,18.88455424,165.98,165.92,8.34748599]
[1730450078195,3.0154,165.97,165.93,3.0161]
[1730450079089,18.88455424,165.98,165.94,8.34748599]
[1730450079306,8.34748599,166.0,165.94,8.34748599]
[1730450079692,11.36238599,166.0,165.96,3.0156]
[1730450080093,3.0151,165.99,165.95,3.0157]
[1730450082697,3.0151,165.99,165.95,11.36318599]
[1730450082890,17.33258097,166.0,165.95,8.34748599]
[1730450083096,3.0149,166.0,165.96,3.0154]
[1730450083484,8.34748599,166.01,165.92,2.82]
[1730450083694,18.2450365,166.04,165.98,8.34748599]